[Event "*** Titled Tuesday 3|2 Blitz (Early)"]
[Site "Chess.com"]
[Date "2016.12.06"]
[Round "8"]
[White "sorito"]
[Black "Pierrebl"]
[Result "1-0"]
[WhiteElo "2380"]
[BlackElo "2475"]
[TimeControl "180+2"]
[EndTime "12:47:43 PST"]
[Termination "sorito won on time"]

1. b3 {[%clk 0:03:02]} 1... Nf6 {[%clk 0:02:59.2]} 2. Bb2 {[%clk 0:03:03.5]}
2... g6 {[%clk 0:03:01.1]} 3. Bxf6 {[%clk 0:03:03.8]} 3... exf6 {[%clk 0:03:03]}
4. c4 {[%clk 0:03:05.2]} 4... Bg7 {[%clk 0:03:04.4]} 5. Nc3 {[%clk 0:03:07.1]}
5... f5 {[%clk 0:03:06.3]} 6. Rc1 {[%clk 0:03:08.4]} 6... O-O {[%clk 0:03:08.1]}
7. g3 {[%clk 0:03:09.7]} 7... d6 {[%clk 0:03:08.6]} 8. Bg2 {[%clk 0:03:11.1]}
8... Nd7 {[%clk 0:03:10.5]} 9. Nh3 {[%clk 0:03:12.4]} 9... Nf6 {[%clk
0:03:07.1]} 10. Nf4 {[%clk 0:03:13.1]} 10... c6 {[%clk 0:03:03]} 11. h4 {[%clk
0:03:06.9]} 11... Re8 {[%clk 0:02:51.4]} 12. e3 {[%clk 0:03:07.5]} 12... Ne4
{[%clk 0:02:48.1]} 13. Nxe4 {[%clk 0:03:02.6]} 13... fxe4 {[%clk 0:02:50]} 14.
d4 {[%clk 0:02:37]} 14... exd3 {[%clk 0:02:24.8]} 15. Qxd3 {[%clk 0:02:37.7]}
15... Bf5 {[%clk 0:02:25.8]} 16. Qd2 {[%clk 0:02:38.5]} 16... h6 {[%clk
0:02:23]} 17. O-O {[%clk 0:02:14.5]} 17... Qe7 {[%clk 0:02:22.6]} 18. Rfd1
{[%clk 0:02:14.2]} 18... Rad8 {[%clk 0:02:22.6]} 19. b4 {[%clk 0:02:13.3]} 19...
Be5 {[%clk 0:02:02.2]} 20. b5 {[%clk 0:02:13.1]} 20... Rc8 {[%clk 0:01:45.1]}
21. bxc6 {[%clk 0:02:14]} 21... bxc6 {[%clk 0:01:47]} 22. Nd3 {[%clk 0:02:15.3]}
22... Red8 {[%clk 0:01:25.9]} 23. Nxe5 {[%clk 0:02:13.9]} 23... dxe5 {[%clk
0:01:27.8]} 24. Qa5 {[%clk 0:02:11]} 24... Rxd1+ {[%clk 0:00:53.5]} 25. Rxd1
{[%clk 0:02:11.7]} 25... Qc7 {[%clk 0:00:55.1]} 26. Qxc7 {[%clk 0:01:58.2]}
26... Rxc7 {[%clk 0:00:55.6]} 27. c5 {[%clk 0:01:59.8]} 27... Be6 {[%clk
0:00:54.5]} 28. a3 {[%clk 0:01:57.6]} 28... Kf8 {[%clk 0:00:49.1]} 29. Rd6
{[%clk 0:01:58.2]} 29... Bd7 {[%clk 0:00:48.1]} 30. h5 {[%clk 0:01:55.7]} 30...
gxh5 {[%clk 0:00:43]} 31. Rxh6 {[%clk 0:01:56.6]} 31... Be6 {[%clk 0:00:28.8]}
32. Rxh5 {[%clk 0:01:56]} 32... f6 {[%clk 0:00:30.3]} 33. Rh8+ {[%clk
0:01:56.5]} 33... Kg7 {[%clk 0:00:27.4]} 34. Rd8 {[%clk 0:01:54.7]} 34... Kf7
{[%clk 0:00:26.9]} 35. Rd6 {[%clk 0:01:55.6]} 35... Bd7 {[%clk 0:00:27.8]} 36.
f4 {[%clk 0:01:52.7]} 36... exf4 {[%clk 0:00:27.2]} 37. exf4 {[%clk 0:01:52.6]}
37... Ke7 {[%clk 0:00:23.5]} 38. Kf2 {[%clk 0:01:53.2]} 38... Rb7 {[%clk
0:00:24.5]} 39. Bxc6 {[%clk 0:01:53.8]} 39... Rb2+ {[%clk 0:00:25]} 40. Ke3
{[%clk 0:01:48.6]} 40... Rb3+ {[%clk 0:00:21.5]} 41. Kd4 {[%clk 0:01:50.1]}
41... Bxc6 {[%clk 0:00:20.2]} 42. Rxc6 {[%clk 0:01:52]} 42... Rxa3 {[%clk
0:00:21.3]} 43. g4 {[%clk 0:01:51]} 43... Rg3 {[%clk 0:00:21.8]} 44. f5 {[%clk
0:01:48.6]} 44... Rxg4+ {[%clk 0:00:21.8]} 45. Kd5 {[%clk 0:01:50.2]} 45... Rf4
{[%clk 0:00:17.2]} 46. Rc7+ {[%clk 0:01:45.6]} 46... Kd8 {[%clk 0:00:17.9]} 47.
Kd6 {[%clk 0:01:42.9]} 47... Rxf5 {[%clk 0:00:13.6]} 48. Rxa7 {[%clk 0:01:43.9]}
48... Kc8 {[%clk 0:00:13.1]} 49. c6 {[%clk 0:01:44.9]} 49... Kb8 {[%clk
0:00:11]} 50. Rb7+ {[%clk 0:01:41.6]} 50... Kc8 {[%clk 0:00:11.8]} 51. Rf7
{[%clk 0:01:42.6]} 51... Kb8 {[%clk 0:00:08.3]} 52. c7+ {[%clk 0:01:41.4]} 52...
Kb7 {[%clk 0:00:08.8]} 53. Rf8 {[%clk 0:01:41.3]} 53... Rc5 {[%clk 0:00:06.9]}
54. Kxc5 {[%clk 0:01:41.5]} 1-0

[Event "*** Titled Tuesday 3|2 Blitz (Early)"]
[Site "Chess.com"]
[Date "2016.12.06"]
[Round "8"]
[White "ftorodent"]
[Black "Schemato"]
[Result "1-0"]
[WhiteElo "2495"]
[BlackElo "2304"]
[TimeControl "180+2"]
[EndTime "12:48:50 PST"]
[Termination "ftorodent won on time"]

1. d4 {[%clk 0:02:59.9]} 1... e6 {[%clk 0:02:58.5]} 2. c4 {[%clk 0:03:00.3]}
2... f5 {[%clk 0:02:59.5]} 3. g3 {[%clk 0:03:01.1]} 3... Nf6 {[%clk 0:02:59.8]}
4. Bg2 {[%clk 0:03:03]} 4... c6 {[%clk 0:03:01.3]} 5. Nh3 {[%clk 0:03:02.2]}
5... d6 {[%clk 0:03:02.3]} 6. O-O {[%clk 0:03:01.8]} 6... Be7 {[%clk 0:03:02.8]}
7. Nc3 {[%clk 0:03:01.6]} 7... O-O {[%clk 0:03:03.6]} 8. e4 {[%clk 0:03:01.8]}
8... fxe4 {[%clk 0:02:59.3]} 9. Nxe4 {[%clk 0:02:56.3]} 9... Nxe4 {[%clk
0:02:58.3]} 10. Bxe4 {[%clk 0:02:57.1]} 10... e5 {[%clk 0:02:51]} 11. dxe5
{[%clk 0:02:39.3]} 11... dxe5 {[%clk 0:02:27.8]} 12. Qh5 {[%clk 0:02:37.5]}
12... g6 {[%clk 0:02:25.1]} 13. Qh6 {[%clk 0:02:37.2]} 13... Bxh3 {[%clk
0:02:09.3]} 14. Qxh3 {[%clk 0:02:36.5]} 14... Qd7 {[%clk 0:02:06.9]} 15. Qg2
{[%clk 0:02:35.5]} 15... Na6 {[%clk 0:02:02.9]} 16. Bh6 {[%clk 0:02:35.3]} 16...
Rfd8 {[%clk 0:01:57.2]} 17. h4 {[%clk 0:02:35.3]} 17... Nc5 {[%clk 0:01:49.3]}
18. Bc2 {[%clk 0:02:33.1]} 18... Qe6 {[%clk 0:01:46.9]} 19. b4 {[%clk
0:02:28.2]} 19... Nd3 {[%clk 0:01:43.8]} 20. b5 {[%clk 0:01:54.8]} 20... e4
{[%clk 0:01:19.4]} 21. Be3 {[%clk 0:01:44.2]} 21... Bf6 {[%clk 0:01:15.4]} 22.
Rad1 {[%clk 0:01:44.6]} 22... Kh8 {[%clk 0:01:15.2]} 23. bxc6 {[%clk 0:01:40.8]}
23... bxc6 {[%clk 0:01:09]} 24. c5 {[%clk 0:01:40.8]} 24... Qxa2 {[%clk
0:01:04.8]} 25. Bxd3 {[%clk 0:01:34.8]} 25... exd3 {[%clk 0:00:58.6]} 26. Qxc6
{[%clk 0:01:35.1]} 26... Bg7 {[%clk 0:00:55.1]} 27. Rxd3 {[%clk 0:01:34.2]}
27... Qc4 {[%clk 0:00:41.3]} 28. Rd7 {[%clk 0:01:32.3]} 28... Rac8 {[%clk
0:00:37.2]} 29. Bh6 {[%clk 0:01:10.3]} 29... Rxc6 {[%clk 0:00:25]} 30. Rxd8+
{[%clk 0:01:10.5]} 30... Qg8 {[%clk 0:00:25.8]} 31. Bxg7+ {[%clk 0:01:07.3]}
31... Kxg7 {[%clk 0:00:26.8]} 32. Rxg8+ {[%clk 0:01:06]} 32... Kxg8 {[%clk
0:00:28.7]} 33. Rc1 {[%clk 0:01:06.7]} 33... Kf7 {[%clk 0:00:29.4]} 34. Ra1
{[%clk 0:01:05.2]} 34... a6 {[%clk 0:00:25.3]} 35. Ra5 {[%clk 0:01:04.8]} 35...
h5 {[%clk 0:00:21.1]} 36. Kg2 {[%clk 0:01:05.3]} 36... Ke6 {[%clk 0:00:21.5]}
37. Kf3 {[%clk 0:01:05]} 37... Kd5 {[%clk 0:00:20.2]} 38. Kf4 {[%clk 0:01:05.8]}
38... Kc4 {[%clk 0:00:21.5]} 39. Kg5 {[%clk 0:00:39.2]} 39... Kb4 {[%clk
0:00:22.3]} 40. Ra1 {[%clk 0:00:40.2]} 40... Kxc5 {[%clk 0:00:17.1]} 41. Rc1+
{[%clk 0:00:35.3]} 41... Kb5 {[%clk 0:00:17.8]} 42. Rxc6 {[%clk 0:00:33.6]}
42... Kxc6 {[%clk 0:00:18.7]} 43. Kxg6 {[%clk 0:00:33.1]} 43... a5 {[%clk
0:00:17.2]} 44. f4 {[%clk 0:00:33.1]} 44... a4 {[%clk 0:00:18.7]} 45. f5 {[%clk
0:00:33.9]} 45... a3 {[%clk 0:00:20.6]} 46. f6 {[%clk 0:00:35]} 46... a2 {[%clk
0:00:22.5]} 47. f7 {[%clk 0:00:34.4]} 47... a1=Q {[%clk 0:00:24.4]} 48. f8=Q
{[%clk 0:00:33.3]} 48... Qd1 {[%clk 0:00:17.9]} 49. Qf6+ {[%clk 0:00:30.3]}
49... Kc7 {[%clk 0:00:12]} 50. Qe5+ {[%clk 0:00:30.5]} 50... Kd8 {[%clk
0:00:10.3]} 51. Qxh5 {[%clk 0:00:27.9]} 51... Qd3+ {[%clk 0:00:10.8]} 52. Qf5
{[%clk 0:00:28.5]} 1-0

[Event "*** Titled Tuesday 3|2 Blitz (Early)"]
[Site "Chess.com"]
[Date "2016.12.06"]
[Round "8"]
[White "Kawhi_Leonard2"]
[Black "Ind1anStar"]
[Result "1/2-1/2"]
[WhiteElo "2233"]
[BlackElo "2174"]
[TimeControl "180+2"]
[EndTime "12:48:51 PST"]
[Termination "Game drawn - insufficient material"]

1. e4 {[%clk 0:03:02]} 1... e5 {[%clk 0:02:59.8]} 2. Nf3 {[%clk 0:03:02.9]} 2...
Nf6 {[%clk 0:03:00.7]} 3. Nxe5 {[%clk 0:03:02.5]} 3... d6 {[%clk 0:03:00.6]} 4.
Nf3 {[%clk 0:03:02.7]} 4... Nxe4 {[%clk 0:03:02]} 5. Nc3 {[%clk 0:03:02.7]} 5...
Nxc3 {[%clk 0:03:01.4]} 6. dxc3 {[%clk 0:03:03.9]} 6... Be7 {[%clk 0:03:02.4]}
7. Bd3 {[%clk 0:03:01.5]} 7... Nd7 {[%clk 0:03:00.8]} 8. h4 {[%clk 0:02:58.7]}
8... Nc5 {[%clk 0:02:58.5]} 9. Ng5 {[%clk 0:02:49.7]} 9... h6 {[%clk 0:02:50.3]}
10. Ne4 {[%clk 0:02:28.2]} 10... Nxe4 {[%clk 0:02:47.8]} 11. Bxe4 {[%clk
0:02:27.3]} 11... Bxh4 {[%clk 0:02:47.8]} 12. Qf3 {[%clk 0:02:24]} 12... Qe7
{[%clk 0:02:36.3]} 13. Be3 {[%clk 0:02:20.1]} 13... c6 {[%clk 0:02:25.9]} 14.
O-O-O {[%clk 0:02:14.4]} 14... Bd7 {[%clk 0:02:20.5]} 15. Kb1 {[%clk 0:02:14.1]}
15... O-O-O {[%clk 0:02:18.9]} 16. Bxa7 {[%clk 0:02:13.1]} 16... Kc7 {[%clk
0:02:13.4]} 17. Qe3 {[%clk 0:02:05.8]} 17... c5 {[%clk 0:02:09]} 18. Bxc5 {[%clk
0:01:29.3]} 18... dxc5 {[%clk 0:02:03.7]} 19. Qf4+ {[%clk 0:01:30.4]} 19... Kc8
{[%clk 0:02:04.2]} 20. Qxh4 {[%clk 0:01:25.3]} 20... g5 {[%clk 0:02:04.5]} 21.
Bxb7+ {[%clk 0:01:13.6]} 21... Kxb7 {[%clk 0:02:05.4]} 22. Qc4 {[%clk
0:01:03.1]} 22... Bc6 {[%clk 0:02:03.6]} 23. Rde1 {[%clk 0:01:00.7]} 23... Qd6
{[%clk 0:01:52.3]} 24. Qxf7+ {[%clk 0:00:44]} 24... Rd7 {[%clk 0:01:53]} 25.
Qb3+ {[%clk 0:00:42.1]} 25... Kc7 {[%clk 0:01:53.2]} 26. f3 {[%clk 0:00:42.8]}
26... Re8 {[%clk 0:01:45]} 27. a4 {[%clk 0:00:07.8]} 27... Rb8 {[%clk
0:01:41.3]} 28. Qa3 {[%clk 0:00:08.3]} 28... Ra8 {[%clk 0:01:33.8]} 29. b3
{[%clk 0:00:08.5]} 29... c4 {[%clk 0:01:30.1]} 30. Qxd6+ {[%clk 0:00:08.1]}
30... Rxd6 {[%clk 0:01:31.1]} 31. Kb2 {[%clk 0:00:09]} 31... Rd2 {[%clk
0:01:28.4]} 32. Rxh6 {[%clk 0:00:06.1]} 32... cxb3 {[%clk 0:01:25.2]} 33. Re7+
{[%clk 0:00:05.1]} 33... Bd7 {[%clk 0:01:25.4]} 34. Kxb3 {[%clk 0:00:03]} 34...
Rb8+ {[%clk 0:01:26.1]} 35. Kc4 {[%clk 0:00:02.9]} 35... Rxg2 {[%clk 0:01:23.9]}
36. Rhh7 {[%clk 0:00:04]} 36... Rd8 {[%clk 0:01:24.8]} 37. a5 {[%clk 0:00:04.5]}
37... Rxc2 {[%clk 0:01:22.5]} 38. Kb3 {[%clk 0:00:04.9]} 38... Rd2 {[%clk
0:01:19.1]} 39. a6 {[%clk 0:00:06.2]} 39... Ra8 {[%clk 0:01:19.5]} 40. Rh6
{[%clk 0:00:05.5]} 40... Rd6 {[%clk 0:01:09.7]} 41. Rxd6 {[%clk 0:00:06.8]}
41... Kxd6 {[%clk 0:01:10.9]} 42. Rg7 {[%clk 0:00:08.7]} 42... Be6+ {[%clk
0:01:09.4]} 43. Kc2 {[%clk 0:00:08.8]} 43... Rxa6 {[%clk 0:01:09.1]} 44. Rxg5
{[%clk 0:00:09.8]} 44... Ra2+ {[%clk 0:01:09.5]} 45. Kd3 {[%clk 0:00:10.5]}
45... Ke7 {[%clk 0:01:10.4]} 46. Ke3 {[%clk 0:00:11.5]} 46... Kf6 {[%clk
0:01:08.2]} 47. Rc5 {[%clk 0:00:11.7]} 47... Rc2 {[%clk 0:01:08.4]} 48. Kf4
{[%clk 0:00:12.6]} 48... Rc1 {[%clk 0:01:07.4]} 49. Rc6 {[%clk 0:00:13.8]} 49...
Re1 {[%clk 0:01:07]} 50. Rc5 {[%clk 0:00:15]} 50... Rh1 {[%clk 0:01:05.5]} 51.
Rc6 {[%clk 0:00:16.1]} 51... Rh4+ {[%clk 0:01:06]} 52. Kg3 {[%clk 0:00:16.3]}
52... Ra4 {[%clk 0:01:05.9]} 53. Rc5 {[%clk 0:00:17]} 53... Kg6 {[%clk
0:01:04.4]} 54. Kf2 {[%clk 0:00:17.8]} 54... Kf6 {[%clk 0:01:05.5]} 55. Kg3
{[%clk 0:00:19.7]} 55... Ra2 {[%clk 0:01:06]} 56. Kf4 {[%clk 0:00:20.4]} 56...
Ra4+ {[%clk 0:01:06.6]} 57. Kg3 {[%clk 0:00:21.5]} 57... Rc4 {[%clk 0:01:07.3]}
58. Rxc4 {[%clk 0:00:22]} 58... Bxc4 {[%clk 0:01:08.9]} 59. Kf4 {[%clk
0:00:23.4]} 59... Be6 {[%clk 0:01:10.1]} 60. Ke4 {[%clk 0:00:23.8]} 60... Bf7
{[%clk 0:01:11.4]} 61. f4 {[%clk 0:00:24.4]} 61... Be6 {[%clk 0:01:12.3]} 62.
Ke3 {[%clk 0:00:24.7]} 62... Kf5 {[%clk 0:01:13.9]} 63. Kf3 {[%clk 0:00:25.8]}
63... Bd5+ {[%clk 0:01:14.8]} 64. Ke3 {[%clk 0:00:27.4]} 64... Bf7 {[%clk
0:01:14.2]} 65. Kd4 {[%clk 0:00:27.6]} 65... Kxf4 {[%clk 0:01:14]} 66. c4 {[%clk
0:00:29.2]} 66... Bxc4 {[%clk 0:01:15.3]} 1/2-1/2

[Event "*** Titled Tuesday 3|2 Blitz (Early)"]
[Site "Chess.com"]
[Date "2016.12.06"]
[Round "8"]
[White "Morpheus4"]
[Black "norwaytoadog"]
[Result "1-0"]
[WhiteElo "1944"]
[BlackElo "1926"]
[TimeControl "180+2"]
[EndTime "12:48:56 PST"]
[Termination "Morpheus4 won on time"]

1. d4 {[%clk 0:02:55.5]} 1... Nf6 {[%clk 0:02:58]} 2. Nf3 {[%clk 0:02:56]} 2...
e6 {[%clk 0:02:56.5]} 3. Bg5 {[%clk 0:02:55.4]} 3... d5 {[%clk 0:02:50.7]} 4.
Nbd2 {[%clk 0:02:53.9]} 4... Be7 {[%clk 0:02:51.3]} 5. e3 {[%clk 0:02:51.5]}
5... h6 {[%clk 0:02:51.5]} 6. Bh4 {[%clk 0:02:51.2]} 6... O-O {[%clk 0:02:52.2]}
7. Bd3 {[%clk 0:02:50.3]} 7... b6 {[%clk 0:02:49.7]} 8. Ne5 {[%clk 0:02:49.6]}
8... c5 {[%clk 0:02:46.5]} 9. c3 {[%clk 0:02:48.7]} 9... Bb7 {[%clk 0:02:39.1]}
10. g4 {[%clk 0:02:46]} 10... Ne8 {[%clk 0:02:33.6]} 11. Bxe7 {[%clk 0:02:36.3]}
11... Qxe7 {[%clk 0:02:33.4]} 12. h4 {[%clk 0:02:33.1]} 12... Nc6 {[%clk
0:02:14.1]} 13. Ndf3 {[%clk 0:02:29.4]} 13... Nd6 {[%clk 0:02:05.9]} 14. Nxc6
{[%clk 0:02:24.7]} 14... Bxc6 {[%clk 0:02:05.8]} 15. Ne5 {[%clk 0:02:25.4]}
15... Bb5 {[%clk 0:02:03.8]} 16. g5 {[%clk 0:01:46.8]} 16... Bxd3 {[%clk
0:01:44.9]} 17. gxh6 {[%clk 0:01:37.9]} 17... Bf5 {[%clk 0:01:34.4]} 18. hxg7
{[%clk 0:01:34.6]} 18... Kxg7 {[%clk 0:01:31.3]} 19. Qh5 {[%clk 0:01:24]} 19...
Bg6 {[%clk 0:00:59]} 20. Qg4 {[%clk 0:01:14.8]} 20... Kh7 {[%clk 0:00:50.4]} 21.
h5 {[%clk 0:00:44.2]} 21... Bf5 {[%clk 0:00:48.6]} 22. Qf4 {[%clk 0:00:43.8]}
22... Rg8 {[%clk 0:00:46]} 23. O-O-O {[%clk 0:00:42.8]} 23... f6 {[%clk
0:00:44.3]} 24. Ng6 {[%clk 0:00:34.9]} 24... Qd7 {[%clk 0:00:35.1]} 25. Rdg1
{[%clk 0:00:32.9]} 25... cxd4 {[%clk 0:00:34.1]} 26. exd4 {[%clk 0:00:32.3]}
26... Ne4 {[%clk 0:00:33]} 27. Rg2 {[%clk 0:00:28.8]} 27... Rac8 {[%clk
0:00:32.8]} 28. f3 {[%clk 0:00:27.6]} 28... Nxc3 {[%clk 0:00:28.8]} 29. bxc3
{[%clk 0:00:27.5]} 29... Rxc3+ {[%clk 0:00:29.1]} 30. Kd1 {[%clk 0:00:27.8]}
30... Qa4+ {[%clk 0:00:28.8]} 31. Ke2 {[%clk 0:00:27.3]} 31... Qxa2+ {[%clk
0:00:27.7]} 32. Kf1 {[%clk 0:00:26.3]} 32... Rc1+ {[%clk 0:00:28.3]} 33. Qxc1
{[%clk 0:00:25.7]} 33... Qa6+ {[%clk 0:00:15.6]} 34. Kg1 {[%clk 0:00:25.4]}
34... Rc8 {[%clk 0:00:12.2]} 35. Qd2 {[%clk 0:00:25]} 35... Qa1+ {[%clk
0:00:11.6]} 36. Kh2 {[%clk 0:00:25]} 36... Qa3 {[%clk 0:00:12.6]} 37. Nh4 {[%clk
0:00:23.4]} 37... Qf8 {[%clk 0:00:07.6]} 38. Nxf5 {[%clk 0:00:23.6]} 38... exf5
{[%clk 0:00:08.6]} 39. Qf4 {[%clk 0:00:21.5]} 39... Rc3 {[%clk 0:00:07.2]} 40.
Qxf5+ {[%clk 0:00:21.7]} 40... Kh8 {[%clk 0:00:07]} 41. Rhg1 {[%clk 0:00:21.8]}
41... Qd6+ {[%clk 0:00:06.7]} 42. f4 {[%clk 0:00:21]} 1-0

[Event "*** Titled Tuesday 3|2 Blitz (Early)"]
[Site "Chess.com"]
[Date "2016.12.06"]
[Round "8"]
[White "Cecile_Haussernot"]
[Black "Divertissement"]
[Result "1-0"]
[WhiteElo "2288"]
[BlackElo "2426"]
[TimeControl "180+2"]
[EndTime "12:49:20 PST"]
[Termination "Cecile_Haussernot won by resignation"]

1. e4 {[%clk 0:03:02]} 1... c5 {[%clk 0:02:59.9]} 2. Nf3 {[%clk 0:03:01]} 2...
e6 {[%clk 0:03:01.4]} 3. d4 {[%clk 0:03:01.3]} 3... cxd4 {[%clk 0:03:02.7]} 4.
Nxd4 {[%clk 0:03:02.9]} 4... Nc6 {[%clk 0:03:04.3]} 5. Nc3 {[%clk 0:02:57.8]}
5... Qc7 {[%clk 0:03:05.5]} 6. f4 {[%clk 0:02:55.9]} 6... a6 {[%clk 0:03:04.5]}
7. Nxc6 {[%clk 0:02:49.2]} 7... Qxc6 {[%clk 0:03:04.5]} 8. Bd3 {[%clk
0:02:50.7]} 8... b5 {[%clk 0:03:05.9]} 9. Qe2 {[%clk 0:02:51]} 9... Bb7 {[%clk
0:03:07.5]} 10. Bd2 {[%clk 0:02:51.5]} 10... Bc5 {[%clk 0:02:51.5]} 11. O-O-O
{[%clk 0:02:51.3]} 11... Ne7 {[%clk 0:02:49.5]} 12. a3 {[%clk 0:02:48.5]} 12...
Rc8 {[%clk 0:02:48.6]} 13. Rhf1 {[%clk 0:02:46.5]} 13... b4 {[%clk 0:02:34]} 14.
axb4 {[%clk 0:02:46.6]} 14... Bxb4 {[%clk 0:02:35.6]} 15. f5 {[%clk 0:02:43]}
15... f6 {[%clk 0:02:27.5]} 16. e5 {[%clk 0:02:35.6]} 16... O-O {[%clk
0:02:13.3]} 17. Be4 {[%clk 0:02:16.4]} 17... Qc7 {[%clk 0:02:07]} 18. fxe6
{[%clk 0:02:08.8]} 18... dxe6 {[%clk 0:01:49]} 19. Bxb7 {[%clk 0:02:09.1]} 19...
Qxb7 {[%clk 0:01:47.9]} 20. exf6 {[%clk 0:02:10.3]} 20... Rxf6 {[%clk
0:01:31.4]} 21. Rxf6 {[%clk 0:02:10.5]} 21... gxf6 {[%clk 0:01:33.3]} 22. Qxe6+
{[%clk 0:02:11.8]} 22... Kg7 {[%clk 0:01:33.1]} 23. Bh6+ {[%clk 0:01:54.8]}
23... Kxh6 {[%clk 0:00:59.8]} 24. Qxf6+ {[%clk 0:01:55.2]} 24... Ng6 {[%clk
0:01:01.5]} 25. Rd4 {[%clk 0:01:52.9]} 25... Rc5 {[%clk 0:00:56.9]} 26. Ne4
{[%clk 0:01:39.9]} 26... Re5 {[%clk 0:00:44.9]} 27. g4 {[%clk 0:01:16.2]} 27...
Be7 {[%clk 0:00:18.7]} 28. Qf3 {[%clk 0:00:57]} 28... Qc7 {[%clk 0:00:06.6]} 29.
Ng3 {[%clk 0:00:51.8]} 29... Re1+ {[%clk 0:00:06.4]} 30. Kd2 {[%clk 0:00:52.8]}
30... Qe5 {[%clk 0:00:06.2]} 31. Nf5+ {[%clk 0:00:53.6]} 31... Kg5 {[%clk
0:00:06.7]} 32. Rd3 {[%clk 0:00:45.5]} 32... Qf4+ {[%clk 0:00:07]} 33. Qxf4+
{[%clk 0:00:46.5]} 33... Nxf4 {[%clk 0:00:08]} 34. Kxe1 {[%clk 0:00:47.7]} 34...
Nxd3+ {[%clk 0:00:09.6]} 35. cxd3 {[%clk 0:00:49]} 35... Bb4+ {[%clk 0:00:11.3]}
36. Ke2 {[%clk 0:00:47.7]} 36... Kxg4 {[%clk 0:00:12.8]} 37. Ne3+ {[%clk
0:00:48.3]} 37... Kh3 {[%clk 0:00:14.1]} 38. Nf1 {[%clk 0:00:42.7]} 38... Kg2
{[%clk 0:00:15.3]} 39. d4 {[%clk 0:00:41.2]} 39... h5 {[%clk 0:00:16.2]} 40. d5
{[%clk 0:00:41.3]} 40... h4 {[%clk 0:00:17.5]} 41. h3 {[%clk 0:00:30.5]} 41...
Kxh3 {[%clk 0:00:18.7]} 42. Kf3 {[%clk 0:00:32.1]} 42... Bd6 {[%clk 0:00:19.8]}
43. b3 {[%clk 0:00:33]} 43... Be5 {[%clk 0:00:20.3]} 44. Ne3 {[%clk 0:00:33.6]}
44... Bd6 {[%clk 0:00:21.8]} 45. Nf5 {[%clk 0:00:33.9]} 45... Be5 {[%clk
0:00:22.9]} 46. d6 {[%clk 0:00:35.2]} 46... Kh2 {[%clk 0:00:23.8]} 47. d7 {[%clk
0:00:34.6]} 47... Bf6 {[%clk 0:00:25.3]} 48. Kg4 {[%clk 0:00:35.9]} 48... h3
{[%clk 0:00:26.5]} 49. Ne3 {[%clk 0:00:28.4]} 49... Bd8 {[%clk 0:00:27.1]} 50.
b4 {[%clk 0:00:23.8]} 50... Bc7 {[%clk 0:00:28]} 51. Nd5 {[%clk 0:00:23.1]}
51... Bd8 {[%clk 0:00:29.3]} 52. Nf4 {[%clk 0:00:24.3]} 52... Kg1 {[%clk
0:00:20.3]} 53. Nxh3+ {[%clk 0:00:25.4]} 53... Kf1 {[%clk 0:00:22]} 54. Nf4
{[%clk 0:00:26.1]} 54... Kf2 {[%clk 0:00:22]} 55. Ne6 {[%clk 0:00:27.4]} 55...
Be7 {[%clk 0:00:23]} 56. Kf4 {[%clk 0:00:18.1]} 56... Ke2 {[%clk 0:00:24.3]} 57.
Ke4 {[%clk 0:00:18.9]} 57... Kd2 {[%clk 0:00:25.9]} 58. Kd4 {[%clk 0:00:19.5]}
58... Kc2 {[%clk 0:00:27.5]} 59. Kc4 {[%clk 0:00:20.9]} 59... Kb2 {[%clk
0:00:29.1]} 60. d8=Q {[%clk 0:00:21.6]} 60... Bxd8 {[%clk 0:00:30.4]} 61. Nxd8
{[%clk 0:00:23]} 61... Ka3 {[%clk 0:00:32.1]} 62. Nb7 {[%clk 0:00:23.7]} 62...
Ka4 {[%clk 0:00:33.1]} 63. Na5 {[%clk 0:00:24.9]} 63... Ka3 {[%clk 0:00:34]} 64.
Kc5 {[%clk 0:00:26]} 64... Ka4 {[%clk 0:00:34.9]} 65. Nc6 {[%clk 0:00:27]} 65...
Ka3 {[%clk 0:00:34]} 66. Kb6 {[%clk 0:00:28.3]} 1-0